fUSD/lending_fUSD_20260329
["ID","MTS","AMOUNT","RATE_DAILY","PERIOD"]
[419065542,1774824656301,-500.0,0.00016,2]
[419065543,1774824656310,-4828.42151533,0.00016,2]
[419065544,1774824656320,-500.0,0.00016,2]
[419065545,1774824656330,-500.0,0.00016,2]
[419065546,1774824656339,-500.0,0.00016,2]
[419065547,1774824656349,-500.0,0.00016,2]
[419065548,1774824656359,-348.6958457,0.00016,2]
[419065549,1774824656368,-1000.0,0.00016,2]
[419065550,1774824656378,-1000.0,0.00016,2]
[419065551,1774824656388,-1000.0,0.00016,2]
[419065552,1774824656398,-1000.0,0.00016,2]
[419065553,1774824656407,-1000.0,0.00016,2]
[419065554,1774824656417,-1000.0,0.00016,2]
[419065555,1774824656427,-1000.0,0.00016,2]
[419065556,1774824656437,-1000.0,0.00016,2]
[419065557,1774824656447,-1000.0,0.00016,2]
[419065558,1774824656457,-1000.0,0.00016,2]
[419065559,1774824656467,-1000.0,0.00016,2]
[419065560,1774824656476,-1000.0,0.00016,2]
[419065561,1774824656486,-1000.0,0.00016,2]
[419065562,1774824656496,-1000.0,0.00016,2]
[419065563,1774824656506,-1000.0,0.00016,2]
[419065564,1774824656516,-1000.0,0.00016,2]
[419065565,1774824656525,-1000.0,0.00016,2]
[419065566,1774824656535,-1000.0,0.00016,2]
[419065567,1774824656544,-1000.0,0.00016,2]
[419065568,1774824656555,-1000.0,0.00016,2]
[419065569,1774824656564,-1000.0,0.00016,2]
[419065570,1774824656574,-482.25822731,0.00016,2]
[419065571,1774824656585,-200.0,0.00016,3]
[419065572,1774824656595,-151.0,0.00016,2]
[419065573,1774824656604,-151.0,0.00016,2]
[419065574,1774824656614,-151.0,0.00016,2]
[419065575,1774824656624,-151.0,0.00016,2]
[419065576,1774824656633,-151.0,0.00016,2]
[419065577,1774824656643,-151.0,0.00016,2]
[419065578,1774824656654,-186.803227,0.00016,2]
[419065579,1774824656664,-151.0,0.00016,2]
[419065580,1774824656674,-151.0,0.00016,2]
[419065581,1774824656684,-151.0,0.00016,2]
[419065582,1774824656694,-151.0,0.00016,2]
[419065583,1774824656703,-151.0,0.00016,2]
[419065584,1774824656712,-151.0,0.00016,2]
[419065585,1774824656722,-151.0,0.00016,2]
[419065586,1774824656732,-151.0,0.00016,2]
[419065587,1774824656742,-436.72463048,0.00016,2]
[419065588,1774824656752,-200.0,0.00016,2]
[419065589,1774824656762,-151.0,0.00016,2]
[419065590,1774824656771,-151.0,0.00016,2]
[419065591,1774824656781,-343.61335268,0.00016,2]
[419065592,1774824656790,-151.0,0.00016,2]
[419065593,1774824656799,-151.0,0.00016,2]
[419065594,1774824656809,-161.0,0.00016,2]
[419065595,1774824656819,-156.0,0.00016,2]
[419065596,1774824656828,-1523.0,0.00016,2]
[419065597,1774824656838,-161.0,0.00016,2]
[419065598,1774824656847,-156.0,0.00016,2]
[419065599,1774824656857,-1523.0,0.00016,2]
[419065600,1774824656866,-205.54151621,0.00016,2]
[419065601,1774824656875,-160.0,0.00016,2]
[419065602,1774824656884,-156.0,0.00016,2]
[419065603,1774824656894,-1523.0,0.00016,2]
[419065604,1774824656904,-168.76883123,0.00016,2]
[419065605,1774824656913,-1523.0,0.00016,2]
[419065606,1774824656924,-1523.0,0.00016,2]
[419065607,1774824656933,-1523.0,0.00016,2]
[419065608,1774824656943,-1523.0,0.00016,2]
[419065609,1774824656954,-1523.0,0.00016,2]
[419065610,1774824656963,-1523.0,0.00016,2]
[419065611,1774824656974,-1523.0,0.00016,2]
[419065612,1774824656985,-1523.0,0.00016,2]
[419065613,1774824656995,-153.0,0.00016,2]
[419065614,1774824657005,-153.0,0.00016,2]
[419065615,1774824657014,-242.8527761,0.00016,2]
[419065616,1774824657024,-1523.0,0.00016,2]
[419065617,1774824657034,-1269.49993133,0.00016,2]
[419065618,1774824657045,-926.279565,0.00016,2]
[419065619,1774824657056,-926.279565,0.00016,2]
[419065620,1774824657065,-926.279565,0.00016,2]
[419065621,1774824657074,-926.279565,0.00016,2]
[419065622,1774824657084,-151.0,0.00016,2]
[419065623,1774824657094,-151.0,0.00016,2]
[419065624,1774824657105,-151.0,0.00016,2]
[419065625,1774824657116,-151.0,0.00016,2]
[419065626,1774824657126,-411.001791,0.00016,2]
[419065627,1774824657137,-411.001791,0.00016,2]
[419065628,1774824657147,-411.001791,0.00016,2]
[419065629,1774824657156,-411.001791,0.00016,2]
[419065630,1774824657165,-1189.605376,0.00016,2]
[419065631,1774824657174,-1189.605376,0.00016,2]
[419065632,1774824657184,-1189.605376,0.00016,2]
[419065633,1774824657193,-1189.605376,0.00016,2]
[419065634,1774824657203,-1576.862549,0.00016,2]
[419065635,1774824657212,-1576.862549,0.00016,2]
[419065636,1774824657222,-1576.862549,0.00016,2]
[419065637,1774824657231,-1576.862549,0.00016,2]
[419065638,1774824657240,-2000.0,0.00016,2]
[419065639,1774824657261,-2000.0,0.00016,2]
[419065640,1774824657271,-2000.0,0.00016,2]
[419065641,1774824657281,-1000.0,0.00016,2]
[419065642,1774824657291,-1187.6136825,0.00016,2]
[419065643,1774824657305,-200.0,0.00016,2]
[419065644,1774824657794,-312.0,0.00016,2]
[419065645,1774824657803,-662.52841787,0.00016,2]
[419065646,1774824657813,-306.0,0.00016,2]
[419065647,1774824657823,-1349.17815191,0.00016,2]
[419065648,1774824657832,-417.1294472,0.00016,2]
[419065649,1774824657843,-2000.0,0.00016,2]
[419065650,1774824657852,-718.0,0.00016008,2]
[419065651,1774824657862,-200.0,0.00016028,2]
[419065652,1774824657872,-350.0,0.00016032,2]
[419065653,1774824657881,-154.52171326,0.00016036,2]
[419065654,1774824657891,-2807.0,0.0001604,2]
[419065655,1774824657900,-2807.0,0.0001604,2]
[419065656,1774824657911,-718.0,0.00016079,2]
[419065657,1774824657920,-718.0,0.00016093,2]
[419065658,1774824657930,-417.1294472,0.000161,2]
[419065659,1774824657940,-350.0,0.00016102,3]
[419065660,1774824657949,-9999.99,0.00016116,2]
[419065661,1774824657958,-3665.0,0.00016138,2]
[419065662,1774824657969,-991.57734,0.0001615,2]
[419065663,1774824657978,-371.288842,0.0001615,2]
[419065664,1774824657988,-217.15233878,0.00016154,2]
[419065665,1774824657997,-200.0,0.0001616,2]
[419065666,1774824658007,-718.0,0.00016164,2]
[419065667,1774824658016,-3902.0,0.00016165,2]
[419065668,1774824658026,-3665.0,0.00016181,2]
[419065669,1774824658035,-5000.0074761,0.000162,5]
[419065670,1774824658045,-21604.97,0.000162,2]
[419065671,1774824658055,-417.1294472,0.000162,2]
[419065672,1774824658065,-590.46,0.00016233,2]
[419065673,1774824658075,-528.41,0.00016233,2]
[419065674,1774824658085,-511.38,0.00016233,2]
[419065675,1774824658095,-517.55,0.00016233,2]
[419065676,1774824658104,-573.16,0.00016233,2]
[419065677,1774824658113,-835.43,0.00016233,2]
[419065678,1774824658123,-10075.42,0.00016238,2]
[419065679,1774824658133,-3391.65,0.00016238,2]
[419065680,1774824658143,-30524.92,0.00016238,2]
[419065681,1774824658153,-2094.01,0.00016238,2]
[419065682,1774824658163,-3665.0,0.00016242,2]
[419065683,1774824658173,-4000.0,0.00016282,2]
[419065684,1774824658183,-3902.0,0.00016287,2]
[419065685,1774824658193,-3286.49,0.000163,2]
[419065686,1774824658204,-697.83742494,0.00016325,2]
[419065687,1774824658215,-200.0,0.0001634,2]
[419065688,1774824658225,-1500.0,0.00016359,2]
[419065689,1774824658235,-1500.0,0.00016359,2]
[419065690,1774824658244,-1500.0,0.00016359,2]
[419065691,1774824658254,-2799.0,0.0001636,2]
[419065692,1774824658263,-2825.0,0.0001636,2]
[419065693,1774824658273,-161.0,0.0001636,2]
[419065694,1774824658282,-163.0,0.0001636,2]
[419065695,1774824658292,-2000.0,0.00016362,2]
[419065696,1774824658302,-500.0,0.00016362,2]
[419065697,1774824658311,-3665.0,0.00016392,2]
[419065698,1774824658321,-155.0,0.00016399,2]
[419065699,1774824658330,-290.46800016,0.000164,2]
[419065700,1774824658345,-2998.60584766,0.000164,2]
[419065701,1774824658357,-1084.24615218,0.000164,2]
[419065702,1774824658367,-1602.93,0.000164,2]
[419065703,1774824658376,-150.0,0.000164,2]
[419065704,1774824658386,-213.0,0.000164,2]
[419065705,1774824658395,-199.82384782,0.000164,2]
[419065706,1774824658427,-102.63615218,0.000164,2]
[419065707,1774824658437,-355.10302531,0.000164,2]
[419065708,1774824658447,-201.78961682,0.00016421,2]
[419065709,1774824658460,-798.21038318,0.00016421,2]
[419065710,1774824658469,-1000.0,0.00016421,2]
[419065711,1774824658479,-194.72792766,0.00016429,2]
[419065712,1774824658489,-151.0,0.00016429,2]
[419065713,1774824658499,-773.2413689,0.00016429,2]
[419065714,1774824658509,-233.51889341,0.00016429,2]
[419065715,1774824658518,-233.51889341,0.00016429,2]
[419065716,1774824658528,-233.51889341,0.00016429,2]
[419065717,1774824658538,-312.13772435,0.00016429,2]
[419065718,1774824658548,-200.0,0.00016429,2]
[419065719,1774824658558,-829.12830338,0.00016429,2]
[419065720,1774824658568,-325.45042702,0.00016437,2]
[419065721,1774824658580,-174.54957298,0.00016437,2]
[419065722,1774824658590,-500.0,0.00016437,2]
[419065723,1774824658600,-666.0,0.00016437,2]
[419065724,1774824658610,-684.0040152,0.00016437,2]
[419065725,1774824658619,-158.97201791,0.00016438,2]
[419065726,1774824658640,-971.46798209,0.00016438,2]
[419065727,1774824658649,-641.56,0.00016438,2]
[419065728,1774824658659,-126.18458231,0.00016438,2]
[419065729,1774824658671,-497.813004,0.00016438,2]
[419065730,1774824658722,-2190.12181778,0.00016438,2]
[419065731,1774824658734,-671.68059591,0.00016438,2]
[419065732,1774824658743,-821.88830657,0.00016438,2]
[419065733,1774824658814,-2220.30079832,0.00011099,2]
[419065734,1774824658830,-11207.27004933,0.00011099,2]
[419065735,1774824658842,-540.91401784,0.00011099,2]
[419065736,1774824658854,-6742.59980643,0.00011099,2]
[419065737,1774824658866,-653.77,0.00011099,2]
[419065738,1774824658912,-2600.0,0.00011099,2]
[419065739,1774824658923,-325.0,0.00011099,2]
[419065740,1774824659095,-1705.74972124,0.00011099,2]
[419065741,1774824659105,-12.36169343,0.00016438,2]
[419065742,1774824659115,-150.0,0.00016438,2]
[419065743,1774824659125,-150.0,0.00016438,2]
[419065744,1774824659135,-150.0,0.00016438,2]
[419065745,1774824659145,-150.0,0.00016438,2]
[419065746,1774824659154,-150.0,0.00016438,2]
[419065747,1774824659164,-150.0,0.00016438,2]
[419065748,1774824659174,-150.0,0.00016438,2]
[419065749,1774824659184,-150.0,0.00016438,2]
[419065750,1774824659194,-150.0,0.00016438,2]
[419065751,1774824659203,-150.0,0.00016438,2]
[419065752,1774824659212,-150.0,0.00016438,2]
[419065753,1774824659221,-150.0,0.00016438,2]
[419065754,1774824659231,-150.0,0.00016438,2]
[419065755,1774824659241,-150.0,0.00016438,2]
[419065756,1774824659250,-150.0,0.00016438,2]
[419065757,1774824659260,-150.0,0.00016438,2]
[419065758,1774824659270,-150.0,0.00016438,2]
[419065759,1774824659280,-150.0,0.00016438,2]
[419065760,1774824659289,-205.46934885,0.00016438,2]
[419065761,1774824659299,-150.0,0.00016438,2]
[419065762,1774824659309,-150.0,0.00016438,2]
[419065763,1774824659318,-150.0,0.00016438,2]
[419065764,1774824659328,-150.0,0.00016438,2]
[419065765,1774824659338,-150.0,0.00016438,2]
[419065766,1774824659347,-150.0,0.00016438,2]
[419065767,1774824659356,-150.0,0.00016438,2]
[419065768,1774824659366,-150.0,0.00016438,2]
[419065769,1774824659375,-150.0,0.00016438,2]
[419065770,1774824659385,-150.0,0.00016438,2]
[419065771,1774824659395,-150.0,0.00016438,2]
[419065772,1774824659404,-150.0,0.00016438,2]
[419065773,1774824659414,-150.0,0.00016438,2]
[419065774,1774824659424,-150.0,0.00016438,2]
[419065775,1774824659433,-150.0,0.00016438,2]
[419065776,1774824659443,-150.0,0.00016438,2]
[419065777,1774824659453,-150.0,0.00016438,2]
[419065778,1774824659463,-150.0,0.00016438,2]
[419065779,1774824659473,-150.0,0.00016438,2]
[419065780,1774824659483,-150.0,0.00016438,2]
[419065781,1774824659492,-150.0,0.00016438,2]
[419065782,1774824659502,-291.96566027,0.00016438,2]
[419065783,1774824659511,-1143.65600214,0.00016438,2]
[419065784,1774824659524,-1356.34399786,0.00016438,2]
[419065785,1774824659534,-2500.0,0.00016438,2]
[419065786,1774824659544,-2500.0,0.00016438,2]
[419065787,1774824659553,-2500.0,0.00016438,2]
[419065788,1774824659563,-2500.0,0.00016438,2]
[419065789,1774824659572,-2500.0,0.00016438,2]
[419065790,1774824659582,-622.57890214,0.00016438,2]
[419065791,1774824659599,-1877.42109786,0.00016438,2]
[419065792,1774824659608,-2500.0,0.00016438,2]
[419065793,1774824659617,-2500.0,0.00016438,2]
[419065794,1774824659627,-2500.0,0.00016438,2]
[419065795,1774824659636,-2500.0,0.00016438,2]
[419065796,1774824659646,-2500.0,0.00016438,2]
[419065797,1774824659655,-2016.57890214,0.00016438,2]
[419065798,1774824659670,-483.42109786,0.00016438,2]
[419065799,1774824659679,-2500.0,0.00016438,2]
[419065800,1774824659689,-2500.0,0.00016438,2]
[419065801,1774824659698,-2500.0,0.00016438,2]
[419065802,1774824659708,-2500.0,0.00016438,2]
[419065803,1774824659717,-2500.0,0.00016438,2]
[419065804,1774824659727,-200.0,0.00016438,2]
[419065805,1774824659736,-250.0,0.00016438,2]
[419065806,1774824659745,-151.0,0.00016438,2]
[419065807,1774824659755,-151.0,0.00016438,2]
[419065808,1774824659764,-151.0,0.00016438,2]
[419065809,1774824659773,-151.0,0.00016438,2]
[419065810,1774824659783,-151.0,0.00016438,2]
[419065811,1774824659792,-151.0,0.00016438,2]
[419065812,1774824659802,-3475.3,0.00016438,2]
[419065813,1774824659811,-250.119976,0.00016438,2]
[419065814,1774824659821,-250.119976,0.00016438,2]
[419065815,1774824659830,-250.119976,0.00016438,2]
[419065816,1774824659841,-250.119976,0.00016438,2]
[419065817,1774824659853,-900.0,0.00016438,2]
[419065818,1774824659863,-827.941286,0.00016438,2]
[419065819,1774824659872,-827.941286,0.00016438,2]
[419065820,1774824659882,-827.941286,0.00016438,2]
[419065821,1774824659891,-827.941286,0.00016438,2]
[419065822,1774824659901,-152.0,0.00016438,2]
[419065823,1774824659910,-152.0,0.00016438,2]
[419065824,1774824659920,-152.0,0.00016438,2]
[419065825,1774824659930,-152.0,0.00016438,2]
[419065826,1774824659939,-152.0,0.00016438,2]
[419065827,1774824660070,-228.97,0.00016438,2]
[419065828,1774824660080,-3000.0,0.00016438,2]
[419065829,1774824660090,-2807.0,0.0001648,2]
[419065830,1774824660100,-2807.0,0.0001648,2]
[419065831,1774824660111,-500.0,0.00016493,2]
[419065832,1774824660120,-584.4416,0.000165,2]
[419065833,1774824660131,-350.0,0.00016502,2]
[419065834,1774824660140,-3902.0,0.00016502,2]
[419065835,1774824660151,-3665.0,0.00016531,2]
[419065836,1774824660160,-3665.0,0.0001655,2]
[419065837,1774824660169,-350.0,0.00016555,2]
[419065838,1774824660177,-200.0,0.00016576,2]
[419065839,1774824660187,-1115.0,0.00016593,2]
[419065840,1774824660196,-300.0,0.00016599,2]
[419065841,1774824660206,-300.0,0.00016599,2]
[419065842,1774824660215,-300.0,0.00016599,2]
[419065843,1774824660224,-363.31674139,0.000166,2]
[419065844,1774824660234,-4837.98,0.000166,2]
[419065845,1774824660243,-5055.34,0.000166,2]
[419065846,1774824660252,-2000.0,0.000166,2]
[419065847,1774824660262,-471.0,0.00016602,2]
[419065848,1774824660271,-461.58789364,0.00016603,2]
[419065849,1774824681867,2300.0,8.36e-05,2]
[419065850,1774824756826,1134.42,8.485e-05,2]
[419065851,1774824992009,442.57,8.304e-05,2]
[419065852,1774825176436,500.0,8.04e-05,2]
[419065859,1774825300190,859.14,7.834e-05,2]
[419065860,1774825362184,1270.0,7.536e-05,2]
[419065861,1774825362750,1179.52,8.289e-05,2]
[419065862,1774825425975,236.5,8.436e-05,2]
[419065869,1774825538978,-999.73849265,8.518e-05,2]
[419065870,1774825539061,-250.0,8.518e-05,2]
[419065871,1774825539147,-500.0,8.518e-05,2]
[419065872,1774825539233,-185.49363684,8.518e-05,2]
[419065873,1774825539320,-500.0,8.518e-05,2]
[419065874,1774825539411,-500.0,8.518e-05,2]
[419065875,1774825539497,-500.0,8.518e-05,2]
[419065876,1774825539581,-314.50636316,8.518e-05,2]
[419065877,1774825539683,-220.90260364,8.518e-05,2]
[419065878,1774825539765,-200.0,8.518e-05,2]
[419065879,1774825539854,-506.5417064,8.518e-05,2]
[419065880,1774825539947,-1802.44075415,8.518e-05,2]
[419065881,1774825540038,-191.01753945,8.518e-05,2]
[419065882,1774825540123,-183.27307312,8.518e-05,2]
[419065883,1774825540203,-202.10141257,8.518e-05,2]
[419065884,1774825540286,-297.89858743,8.518e-05,2]
[419065885,1774825562201,150.0,8.517e-05,2]
[419065886,1774825562246,300.0,8.517e-05,2]
[419065887,1774825562785,300.0,8.517e-05,2]
[419065888,1774825601241,2312.78,8.169e-05,2]
[419065889,1774825612404,1142.15,7.985e-05,2]
[419065890,1774825612561,880.0,8.161e-05,2]
[419065891,1774825613090,1400.0,8.398e-05,2]
[419065892,1774825638919,-1000.0,8.518e-05,2]
[419065893,1774825639024,-2028.58,8.518e-05,2]
[419065894,1774825639100,-10000.01,8.518e-05,2]
[419065895,1774825639225,-10000.01,8.518e-05,2]
[419065896,1774825639344,-10000.01,8.518e-05,2]
[419065897,1774825639456,-10000.01,8.518e-05,2]
[419065898,1774825639565,-10000.01,8.518e-05,2]
[419065899,1774825639694,-10000.01,8.518e-05,2]
[419065900,1774825639834,-10000.01,8.518e-05,2]
[419065901,1774825639982,-10000.01,8.518e-05,2]
[419065902,1774825640293,-10000.01,8.518e-05,2]
[419065903,1774825641808,-1095.26537278,8.518e-05,2]
[419065904,1774825641838,-300.0,8.526e-05,2]
[419065905,1774825641868,-1200.0,8.526e-05,2]
[419065906,1774825641896,-1170.0,8.527e-05,2]
[419065907,1774825641927,-198.55759631,8.527e-05,2]
[419065908,1774825641955,-150.0,8.527e-05,2]
[419065909,1774825641985,-194.65430371,8.527e-05,2]
[419065910,1774825642477,-1383.0554544,8.527e-05,2]
[419065911,1774825643452,-1383.0654544,8.527e-05,2]
[419065912,1774825643700,-2233.8790912,8.527e-05,2]
[419065913,1774825653921,-1000.0,8.527e-05,2]
[419065914,1774825653952,-250.0,8.528e-05,2]
[419065915,1774825657873,7500.01,8e-05,2]
[419065916,1774825657896,1213.35503267,8e-05,2]
[419065917,1774825677966,259.28,8.085e-05,2]
[419065918,1774825697137,1000.55187123,8.527e-05,2]
[419065919,1774825699336,637.74170306,8.518e-05,2]
[419065921,1774825732929,200.0,8.4e-05,2]
[419065922,1774825742081,300.0,8.527e-05,2]
[419065923,1774825742120,660.0,7.845e-05,2]
[419065924,1774825742174,150.0,8.527e-05,2]
[419065925,1774825742211,232.17,8.501e-05,2]
[419065926,1774825742865,300.0,8.527e-05,2]
[419065927,1774825779012,228.20571621,8.521e-05,2]
[419065928,1774825789196,393.87851549,7.888e-05,2]
[419065929,1774825803618,239.0,8.528e-05,2]
[419065930,1774825808382,1002.75935616,8.527e-05,2]
[419065931,1774825810782,3183.06780518,8.338e-05,2]
[419065932,1774825810808,6004.02219482,8.338e-05,2]
[419065933,1774825813330,1200.0,8.527e-05,2]
[419065952,1774825832743,-180946.7113966,8.528e-05,2]
[419065953,1774825832753,-1157.90547016,8.53e-05,2]
[419065954,1774825832763,-250.0,8.532e-05,2]
[419065955,1774825832772,-150.0,8.532e-05,2]
[419065956,1774825832782,-150.0,8.532e-05,2]
[419065957,1774825832791,-250.0,8.599e-05,2]
[419065958,1774825832801,-1500.0,8.614e-05,2]
[419065959,1774825832811,-7044.75571968,8.757e-05,2]
[419065960,1774825832820,-150.99,8.757e-05,2]
[419065961,1774825832829,-9999.99,8.757e-05,2]
[419065962,1774825832839,-390.53,8.766e-05,2]
[419065963,1774825832848,-9999.99,8.766e-05,2]
[419065964,1774825832857,-999.99,8.766e-05,2]
[419065965,1774825832868,-150.99,8.766e-05,2]
[419065966,1774825832878,-94739.83,8.766e-05,2]
[419065967,1774825832888,-2115.96,8.766e-05,2]
[419065968,1774825832897,-1460.0,8.785e-05,2]
[419065969,1774825832909,-607.74,8.898e-05,2]
[419065970,1774825832919,-236.5,8.904e-05,2]
[419065971,1774825832930,-405.47,9e-05,2]
[419065972,1774825832940,-342.07,9.025e-05,2]
[419065973,1774825832949,-1640.0,9.153e-05,2]
[419065974,1774825832959,-166.66,9.219e-05,2]
[419065975,1774825832969,-1000.0,9.266e-05,2]
[419065976,1774825832979,-150.0,9.3e-05,2]
[419065977,1774825832988,-508.66,9.334e-05,2]
[419065978,1774825832998,-1947.0,9.369e-05,2]
[419065979,1774825833008,-193.0,9.369e-05,2]
[419065980,1774825833018,-236.5,9.373e-05,2]
[419065981,1774825833028,-1229.47,9.376e-05,2]
[419065982,1774825833037,-255.0,9.38e-05,2]
[419065983,1774825833047,-420.0,9.38e-05,2]
[419065984,1774825833058,-1680.0,9.38e-05,2]
[419065985,1774825833067,-250.0,9.381e-05,2]
[419065986,1774825833078,-5000.0,9.381e-05,2]
[419065987,1774825833088,-1237.73,9.418e-05,2]
[419065988,1774825833098,-321.401916,9.426e-05,2]
[419065989,1774825833108,-1573.0,9.434e-05,2]
[419065990,1774825833117,-677.0,9.472e-05,2]
[419065991,1774825833127,-500.0,9.499e-05,2]
[419065992,1774825833137,-576.90800264,9.499e-05,2]
[419065993,1774825833151,-500.0,9.499e-05,2]
[419065994,1774825833163,-500.0,9.499e-05,2]
[419065995,1774825833173,-500.0,9.499e-05,2]
[419065996,1774825833182,-500.0,9.499e-05,2]
[419065997,1774825833192,-500.0,9.499e-05,2]
[419065998,1774825833202,-500.0,9.499e-05,2]
[419065999,1774825833212,-500.0,9.499e-05,2]
[419066000,1774825833222,-500.0,9.499e-05,2]
[419066001,1774825833232,-500.0,9.499e-05,2]
[419066002,1774825833242,-500.0,9.499e-05,2]
[419066003,1774825833252,-500.0,9.499e-05,2]
[419066004,1774825833262,-500.0,9.499e-05,2]
[419066005,1774825833272,-500.0,9.499e-05,2]
[419066006,1774825833283,-500.0,9.499e-05,2]
[419066007,1774825833293,-500.0,9.499e-05,2]
[419066008,1774825833303,-500.0,9.499e-05,2]
[419066009,1774825833313,-500.0,9.499e-05,2]
[419066010,1774825833323,-500.0,9.499e-05,2]
[419066011,1774825833334,-539.19611512,9.499e-05,2]
[419066012,1774825833343,-478791.41458988,9.5e-05,3]
[419066013,1774825833353,-166.66,9.524e-05,2]
[419066014,1774825833363,-9999.99,9.67e-05,2]
[419066015,1774825833373,-8618.44,9.67e-05,2]
[419066016,1774825833384,-616.0,9.677e-05,2]
[419066017,1774825833394,-11766.0134,9.738e-05,2]
[419066018,1774825833407,-538.74,9.764e-05,2]
[419066019,1774825833417,-166.66,9.828e-05,2]
[419066020,1774825833427,-236.5,9.842e-05,2]
[419066021,1774825833438,-510.6,9.958e-05,2]
[419066022,1774825833448,-500.0,9.999e-05,2]
[419066023,1774825833458,-958.15113749,0.0001,2]
[419066024,1774825833468,-500.0,0.0001,2]
[419066025,1774825833478,-500.0,0.0001,2]
[419066026,1774825833488,-500.0,0.0001,2]
[419066027,1774825833498,-500.0,0.0001,2]
[419066028,1774825833509,-500.0,0.0001,2]
[419066029,1774825833520,-500.0,0.0001,2]
[419066030,1774825833530,-500.0,0.0001,2]
[419066031,1774825833540,-500.0,0.0001,2]
[419066032,1774825833551,-500.0,0.0001,2]
[419066033,1774825833561,-500.0,0.0001,2]
[419066034,1774825833571,-500.0,0.0001,2]
[419066035,1774825833581,-200.0,0.0001,2]
[419066036,1774825833591,-500.0,0.0001,2]
[419066037,1774825833601,-500.0,0.0001,2]
[419066038,1774825833611,-500.0,0.0001,2]
[419066039,1774825833620,-500.0,0.0001,2]
[419066040,1774825833630,-500.0,0.0001,2]
[419066041,1774825833641,-500.0,0.0001,2]
[419066042,1774825833651,-500.0,0.0001,2]
[419066043,1774825833665,-151.0,0.0001,2]
[419066044,1774825833676,-500.0,0.0001,2]
[419066045,1774825833686,-151.0,0.0001,2]
[419066046,1774825833696,-500.0,0.0001,2]
[419066047,1774825833706,-151.0,0.0001,2]
[419066048,1774825833717,-500.0,0.0001,2]
[419066049,1774825833727,-151.0,0.0001,2]
[419066050,1774825833737,-500.0,0.0001,2]
[419066051,1774825833747,-151.0,0.0001,2]
[419066052,1774825833757,-151.0,0.0001,2]
[419066053,1774825833768,-151.0,0.0001,2]
[419066054,1774825833778,-151.0,0.0001,2]
[419066055,1774825833788,-151.0,0.0001,2]
[419066056,1774825833799,-151.0,0.0001,2]
[419066057,1774825833809,-151.0,0.0001,2]
[419066058,1774825833819,-151.0,0.0001,2]
[419066059,1774825833830,-151.0,0.0001,2]
[419066060,1774825833840,-1386.78395259,0.0001,2]
[419066061,1774825833851,-151.0,0.0001,2]
[419066062,1774825833862,-151.0,0.0001,2]
[419066063,1774825833872,-151.0,0.0001,2]
[419066064,1774825833883,-151.0,0.0001,2]
[419066065,1774825833893,-151.0,0.0001,2]
[419066066,1774825833905,-151.0,0.0001,2]
[419066067,1774825833915,-151.0,0.0001,2]
[419066068,1774825833925,-151.0,0.0001,2]
[419066069,1774825833935,-151.0,0.0001,2]
[419066070,1774825833945,-151.0,0.0001,2]
[419066071,1774825833955,-151.0,0.0001,2]
[419066072,1774825833965,-151.0,0.0001,2]